[Event "50th Ciudad Sevilla 2024"]
[Site "Sevilla"]
[Date "2025.01.13"]
[Round "4.12"]
[White "Xu, Minghui"]
[Black "Morais, Miguel Almeida"]
[Result "1-0"]
[Annotator "RC"]
[ECO "A07"]
[WhiteElo "2428"]
[BlackElo "2132"]
[PlyCount "121"]
[EventDate "2025.01.10"]
[EventType "swiss"]
[EventCountry "ESP"]
[SourceTitle "playchess.com"]
[Source "ChessBase"]
[SourceQuality "1"]
[TimeControl "90+30"]

1. Nf3 {[%emt 0:00:00]} d5 {[%emt 0:00:00]} 2. g3 {[%emt 0:00:00]} Nd7 {[%emt 0:00:00]} 3. c4 {[%emt 0:00:00]} dxc4 {[%emt 0:00:00]} 4. Qc2 {[%emt 0:00:00]} Nb6 {[%emt 0:00:00]} 5. Na3 {[%emt 0:00:00]} Be6 {[%emt 0:00:00]} 6. e4 {[%emt 0:00:00]} Nf6 {[%emt 0:00:00]} 7. Nxc4 {[%emt 0:00:00]} Nxc4 {[%emt 0:00:00]} 8. Bxc4 {[%emt 0:00:00]} Bxc4 {[%emt 0:00:00]} 9. Qxc4 {[%emt 0:00:00]} c6 {[%emt 0:00:00]} 10. O-O {[%emt 0:00:00]} e6 {[%emt 0:00:00]} 11. b4 {[%emt 0:00:00]} Be7 {[%emt 0:00:00]} 12. d3 {[%emt 0:00:00]} O-O {[%emt 0:00:00]} 13. Bf4 {[%emt 0:00:00]} a6 {[%emt 0:00:00]} 14. Rfd1 {[%emt 0:00:00]} Qb6 {[%emt 0:00:00]} 15. Rab1 {[%emt 0:00:00]} Rfd8 {[%emt 0:00:00]} 16. a4 {[%emt 0:00:00]} Rac8 {[%emt 0:00:00]} 17. Kg2 {[%emt 0:00:00]} Qa7 {[%emt 0:00:00]} 18. Be3 {[%emt 0:00:00]} Qb8 {[%emt 0:00:00]} 19. Bb6 {[%emt 0:00:00]} Re8 {[%emt 0:00:00]} 20. Qc2 {[%emt 0:00:00]} h6 {[%emt 0:00:00]} 21. Rdc1 {[%emt 0:00:00]} Nd7 {[%emt 0:00:00]} 22. Be3 {[%emt 0:00:00]} Ne5 {[%emt 0:00:00]} 23. Nd2 {[%emt 0:00:00]} Ng4 {[%emt 0:00:00]} 24. Bb6 {[%emt 0:00:00]} Bd8 {[%emt 0:00:00]} 25. Bc5 {[%emt 0:00:00]} Be7 {[%emt 0:00:00]} 26. h3 {[%emt 0:00:00]} Nf6 {[%emt 0:00:00]} 27. Be3 {[%emt 0:00:00]} Nd7 {[%emt 0:05:40]} 28. Rb3 {[%emt 0:00:00]} b5 {[%emt 0:04:51]} 29. a5 {[%emt 0:00:00]} Qd6 {[%emt 0:02:19]} 30. Nf3 {[%emt 0:00:00]} Bf6 {[%emt 0:01:36]} 31. Bf4 {[%emt 0:04:20]} Qf8 {[%emt 0:00:56]} 32. e5 {[%emt 0:00:30]} Be7 {[%emt 0:00:04]} 33. Bd2 {[%emt 0:00:53]} Red8 {[%emt 0:00:22]} 34. d4 {[%emt 0:00:47]} Nb8 {[%emt 0:00:32]} 35. Qe4 {[%emt 0:00:54]} Qe8 {[%emt 0:00:34]} 36. Qg4 {[%emt 0:00:19]} Kh8 {[%emt 0:00:07]} 37. Re3 {[%emt 0:01:13]} Qf8 {[%emt 0:02:55]} 38. Rb1 {[%emt 0:03:54]} Qg8 {[%emt 0:00:06]} 39. Re4 {[%emt 0:00:42]} Rc7 {[%emt 0:00:23]} 40. Rbe1 {[%emt 0:00:38]} Bf8 {[%emt 0:00:52]} 41. Qh5 {[%emt 0:01:30]} Qh7 {[%emt 0:00:40]} 42. Rg4 {[%emt 0:00:50]} g6 {[%emt 0:00:23]} 43. Qh4 {[%emt 0:00:11]} Rcd7 {[%emt 0:00:32]} 44. Rge4 {[%emt 0:01:17]} Be7 {[%emt 0:00:33]} 45. Qf4 {[%emt 0:00:18]} g5 {[%emt 0:00:24]} 46. Qe3 {[%emt 0:00:13]} Rg8 {[%emt 0:00:24]} 47. h4 {[%emt 0:01:28]} g4 {[%emt 0:00:43]} 48. Nh2 {[%emt 0:01:06]} h5 {[%emt 0:00:04]} 49. f3 {[%emt 0:00:15]} gxf3+ {[%emt 0:00:16]} 50. Nxf3 {[%emt 0:00:02]} Kg7 {[%emt 0:01:02]} 51. Rf4 {[%emt 0:00:52]} Kf8 {[%emt 0:00:14]} 52. Rf1 {[%emt 0:01:03]} Ke8 {[%emt 0:00:11]} 53. Bc3 {[%emt 0:00:30]} Qg6 {[%emt 0:00:50]} 54. Nd2 {[%emt 0:00:10]} Rg7 {[%emt 0:00:31]} 55. Ne4 {[%emt 0:00:08]} Kd8 {[%emt 0:00:11]} 56. R1f2 {[%emt 0:03:42]} Ke8 {[%emt 0:00:51]} 57. Qf3 {[%emt 0:00:29]} Rd5 {[%emt 0:00:23]} 58. Bd2 {[%emt 0:00:20]} Nd7 {[%emt 0:00:43]} 59. Nc3 {[%emt 0:00:24]} Nxe5 {[%emt 0:00:45]} 60. dxe5 {[%emt 0:00:19]} Rxe5 {[%emt 0:00:04]} 61. Qxc6+ {[%emt 0:00:12]} 1-0

[Event "50th Ciudad Sevilla 2024"]
[Site "Sevilla"]
[Date "2025.01.13"]
[Round "4.13"]
[White "Campora Perez, Daniel"]
[Black "Isanzhulov, Arystan"]
[Result "0-1"]
[Annotator "RC"]
[ECO "B23"]
[WhiteElo "2073"]
[BlackElo "2397"]
[PlyCount "56"]
[EventDate "2025.01.10"]
[EventType "swiss"]
[EventCountry "ESP"]
[SourceTitle "playchess.com"]
[Source "ChessBase"]
[SourceQuality "1"]
[TimeControl "90+30"]

1. e4 {[%emt 0:00:00]} c5 {[%emt 0:00:00]} 2. Nc3 {[%emt 0:00:00]} Nc6 {[%emt 0:00:00]} 3. Bb5 {[%emt 0:00:00]} Nd4 {[%emt 0:00:00]} 4. Nf3 {[%emt 0:00:00]} e6 {[%emt 0:00:00]} 5. O-O {[%emt 0:00:00]} a6 {[%emt 0:00:00]} 6. Bd3 {[%emt 0:00:00]} Nc6 {[%emt 0:00:00]} 7. a4 {[%emt 0:00:00]} g5 {[%emt 0:00:00]} 8. Bc4 {[%emt 0:00:00]} g4 {[%emt 0:00:00]} 9. Ne1 {[%emt 0:00:00]} Nf6 {[%emt 0:00:00]} 10. d3 {[%emt 0:00:00]} d5 {[%emt 0:00:00]} 11. Ba2 {[%emt 0:00:00]} dxe4 {[%emt 0:00:00]} 12. Bg5 {[%emt 0:00:00]} exd3 {[%emt 0:00:00]} 13. Nxd3 {[%emt 0:00:00]} Rg8 {[%emt 0:00:00]} 14. Bh4 {[%emt 0:00:00]} Be7 {[%emt 0:00:00]} 15. Nxc5 {[%emt 0:00:00]} Qa5 {[%emt 0:00:00]} 16. Bxf6 {[%emt 0:00:00]} Bxf6 {[%emt 0:00:00]} 17. N3e4 {[%emt 0:00:00]} Be7 {[%emt 0:00:00]} 18. c3 {[%emt 0:00:00]} Qc7 {[%emt 0:00:00]} 19. b4 {[%emt 0:02:42]} b6 {[%emt 0:00:00]} 20. Nb3 {[%emt 0:00:47]} h5 {[%emt 0:00:00]} 21. Nd4 {[%emt 0:01:42]} Bb7 {[%emt 0:00:00]} 22. Nxc6 {[%emt 0:05:41]} Qxc6 {[%emt 0:03:54]} 23. Re1 {[%emt 0:00:31]} b5 {[%emt 0:00:22]} 24. c4 {[%emt 0:00:51]} Rd8 {[%emt 0:01:20]} 25. Qe2 {[%emt 0:00:43]} Rd4 {[%emt 0:01:12]} 26. Bb1 {[%emt 0:00:51]} bxc4 {[%emt 0:04:05]} 27. Qe3 {[%emt 0:00:37]} Qd5 {[%emt 0:01:13]} 28. Qf4 {[%emt 0:00:13]} f5 {[%emt 0:00:26]} 0-1

[Event "50th Ciudad Sevilla 2024"]
[Site "Sevilla"]
[Date "2025.01.13"]
[Round "4.14"]
[White "Carrascoso Morales, Abel"]
[Black "Del Rio De Angelis, Salvador G."]
[Result "0-1"]
[Annotator "RC"]
[ECO "B00"]
[WhiteElo "2172"]
[BlackElo "2403"]
[PlyCount "72"]
[EventDate "2025.01.10"]
[EventType "swiss"]
[EventCountry "ESP"]
[SourceTitle "playchess.com"]
[Source "ChessBase"]
[SourceQuality "1"]
[TimeControl "90+30"]

1. e4 {[%emt 0:00:00]} Nc6 {[%emt 0:00:00]} 2. d4 {[%emt 0:00:00]} d5 {[%emt 0:00:00]} 3. exd5 {[%emt 0:00:00]} Qxd5 {[%emt 0:00:00]} 4. Nf3 {[%emt 0:00:00]} Bg4 {[%emt 0:00:00]} 5. Be2 {[%emt 0:00:00]} O-O-O {[%emt 0:00:00]} 6. Nc3 {[%emt 0:00:00]} Qf5 {[%emt 0:00:00]} 7. Be3 {[%emt 0:00:00]} Nf6 {[%emt 0:00:00]} 8. h3 {[%emt 0:00:00]} Bxf3 {[%emt 0:00:00]} 9. Bxf3 {[%emt 0:00:00]} Nxd4 {[%emt 0:00:00]} 10. Bxd4 {[%emt 0:00:00]} e5 {[%emt 0:00:00]} 11. g4 {[%emt 0:00:00]} Qf4 {[%emt 0:00:00]} 12. Qe2 {[%emt 0:00:00]} exd4 {[%emt 0:00:00]} 13. Bxb7+ {[%emt 0:00:00]} Kxb7 {[%emt 0:00:00]} 14. Qb5+ {[%emt 0:00:00]} Kc8 {[%emt 0:00:00]} 15. Qa6+ {[%emt 0:00:00]} Kd7 {[%emt 0:00:00]} 16. Qa4+ {[%emt 0:00:00]} c6 {[%emt 0:00:00]} 17. Ne2 {[%emt 0:00:00]} Qc7 {[%emt 0:00:00]} 18. O-O-O {[%emt 0:00:00]} Bc5 {[%emt 0:00:00]} 19. Nxd4 {[%emt 0:00:00]} Bxd4 {[%emt 0:00:00]} 20. Rxd4+ {[%emt 0:00:00]} Kc8 {[%emt 0:00:00]} 21. Rb4 {[%emt 0:00:00]} a5 {[%emt 0:00:00]} 22. Rc4 {[%emt 0:00:00]} Kb7 {[%emt 0:00:00]} 23. b4 {[%emt 0:00:00]} Rd5 {[%emt 0:00:00]} 24. Re1 {[%emt 0:03:51]} Re8 {[%emt 0:00:00]} 25. Rxe8 {[%emt 0:00:38]} Nxe8 {[%emt 0:00:00]} 26. bxa5 {[%emt 0:00:16]} Rxa5 {[%emt 0:00:00]} 27. Rb4+ {[%emt 0:02:33]} Ka7 {[%emt 0:00:00]} 28. Qb3 {[%emt 0:00:16]} Nd6 {[%emt 0:00:00]} 29. Qd3 {[%emt 0:02:17]} Qe7 {[%emt 0:00:00]} 30. Rd4 {[%emt 0:01:26]} Qe1+ {[%emt 0:00:00]} 31. Kb2 {[%emt 0:00:05]} Rb5+ {[%emt 0:00:00]} 32. Ka3 {[%emt 0:00:06]} Qc1+ {[%emt 0:00:00]} 33. Ka4 {[%emt 0:00:06]} Nb7 {[%emt 0:00:00]} 34. Rd7 {[%emt 0:01:07]} Ra5+ {[%emt 0:00:00]} 35. Kb4 {[%emt 0:01:29]} c5+ {[%emt 0:00:00]} 36. Kc4 {[%emt 0:00:50]} Qf4+ {[%emt 0:00:00]} 0-1

[Event "50th Ciudad Sevilla 2024"]
[Site "Sevilla"]
[Date "2025.01.13"]
[Round "4.15"]
[White "Matamoros Franco, Carlos S."]
[Black "Rodriguez Pereira, Enrique"]
[Result "1/2-1/2"]
[Annotator "RC"]
[ECO "A04"]
[WhiteElo "2394"]
[BlackElo "2167"]
[PlyCount "103"]
[EventDate "2025.01.10"]
[EventType "swiss"]
[EventCountry "ESP"]
[SourceTitle "playchess.com"]
[Source "ChessBase"]
[SourceQuality "1"]
[TimeControl "90+30"]

1. Nf3 {[%emt 0:00:00]} c5 {[%emt 0:00:00]} 2. g3 {[%emt 0:00:00]} Nc6 {[%emt 0:00:00]} 3. Bg2 {[%emt 0:00:00]} Nf6 {[%emt 0:00:00]} 4. O-O {[%emt 0:00:00]} e5 {[%emt 0:00:00]} 5. c4 {[%emt 0:00:00]} d5 {[%emt 0:00:00]} 6. cxd5 {[%emt 0:00:00]} Nxd5 {[%emt 0:00:00]} 7. Nc3 {[%emt 0:00:00]} Nc7 {[%emt 0:00:00]} 8. a3 {[%emt 0:00:00]} f6 {[%emt 0:00:00]} 9. Rb1 {[%emt 0:00:00]} Rb8 {[%emt 0:00:00]} 10. d3 {[%emt 0:00:00]} Be7 {[%emt 0:00:00]} 11. Be3 {[%emt 0:00:00]} O-O {[%emt 0:00:00]} 12. b4 {[%emt 0:00:00]} cxb4 {[%emt 0:00:00]} 13. axb4 {[%emt 0:00:00]} b5 {[%emt 0:00:00]} 14. d4 {[%emt 0:00:00]} Bf5 {[%emt 0:00:00]} 15. Rc1 {[%emt 0:00:00]} e4 {[%emt 0:00:00]} 16. Nh4 {[%emt 0:00:00]} Be6 {[%emt 0:00:00]} 17. Nxe4 {[%emt 0:00:00]} Nxb4 {[%emt 0:00:00]} 18. d5 {[%emt 0:00:00]} Ncxd5 {[%emt 0:00:00]} 19. Bxa7 {[%emt 0:00:00]} Rc8 {[%emt 0:00:00]} 20. Qd2 {[%emt 0:00:00]} Nc3 {[%emt 0:00:00]} 21. Qb2 {[%emt 0:00:29]} Na4 {[%emt 0:00:00]} 22. Qa1 {[%emt 0:09:52]} Qd7 {[%emt 0:00:00]} 23. Qd4 {[%emt 0:01:13]} Qxd4 {[%emt 0:00:00]} 24. Bxd4 {[%emt 0:00:01]} Rfd8 {[%emt 0:00:00]} 25. e3 {[%emt 0:01:57]} Nc2 {[%emt 0:00:00]} 26. Nf3 {[%emt 0:00:52]} b4 {[%emt 0:02:26]} 27. Rb1 {[%emt 0:00:30]} Bf5 {[%emt 0:01:30]} 28. Nh4 {[%emt 0:00:20]} Nxd4 {[%emt 0:01:09]} 29. exd4 {[%emt 0:00:02]} Bxe4 {[%emt 0:00:26]} 30. Bxe4 {[%emt 0:00:03]} Nc3 {[%emt 0:00:08]} 31. Bf5 {[%emt 0:00:27]} Nxb1 {[%emt 0:02:34]} 32. Bxc8 {[%emt 0:00:02]} Nd2 {[%emt 0:01:24]} 33. Be6+ {[%emt 0:00:16]} Kf8 {[%emt 0:00:13]} 34. Re1 {[%emt 0:02:24]} g6 {[%emt 0:01:45]} 35. Re2 {[%emt 0:00:26]} Rxd4 {[%emt 0:00:49]} 36. Kg2 {[%emt 0:00:01]} Rd3 {[%emt 0:01:57]} 37. Re3 {[%emt 0:00:20]} Rxe3 {[%emt 0:01:23]} 38. fxe3 {[%emt 0:00:01]} b3 {[%emt 0:00:01]} 39. Nf3 {[%emt 0:00:08]} Nxf3 {[%emt 0:00:05]} 40. Kxf3 {[%emt 0:00:02]} b2 {[%emt 0:00:06]} 41. Ba2 {[%emt 0:00:03]} Bc5 {[%emt 0:00:28]} 42. h4 {[%emt 0:02:10]} Ke7 {[%emt 0:01:19]} 43. g4 {[%emt 0:00:20]} Bb6 {[%emt 0:02:40]} 44. h5 {[%emt 0:00:13]} gxh5 {[%emt 0:02:09]} 45. gxh5 {[%emt 0:00:01]} Kf8 {[%emt 0:00:24]} 46. Bb1 {[%emt 0:00:33]} Kg7 {[%emt 0:00:06]} 47. Ke2 {[%emt 0:00:22]} Kh6 {[%emt 0:00:57]} 48. Kd2 {[%emt 0:00:14]} Bc7 {[%emt 0:00:21]} 49. Bd3 {[%emt 0:00:13]} Kxh5 {[%emt 0:01:34]} 50. Bxh7 {[%emt 0:00:06]} Kg4 {[%emt 0:00:11]} 51. Kc2 {[%emt 0:00:07]} Be5 {[%emt 0:00:16]} 52. e4 {[%emt 0:00:05]} 1/2-1/2

[Event "50th Ciudad Sevilla 2024"]
[Site "Sevilla"]
[Date "2025.01.13"]
[Round "4.16"]
[White "Lohia, Sohum"]
[Black "Chacon Perez, Juan"]
[Result "1/2-1/2"]
[Annotator "ChessBase"]
[ECO "B41"]
[WhiteElo "2367"]
[BlackElo "2143"]
[PlyCount "82"]
[EventDate "2025.01.10"]
[EventType "swiss"]
[EventCountry "ESP"]
[SourceTitle "playchess.com"]
[Source "ChessBase"]
[SourceQuality "1"]
[TimeControl "90+30"]

1. e4 {[%emt 0:00:00]} c5 {[%emt 0:00:00]} 2. Nf3 {[%emt 0:00:00]} e6 {[%emt 0:00:00]} 3. d4 {[%emt 0:00:00]} cxd4 {[%emt 0:00:00]} 4. Nxd4 {[%emt 0:00:00]} a6 {[%emt 0:00:00]} 5. c4 {[%emt 0:00:00]} Nf6 {[%emt 0:00:00]} 6. Nc3 {[%emt 0:00:00]} Bb4 {[%emt 0:00:00]} 7. Qd3 {[%emt 0:00:00]} O-O {[%emt 0:00:00]} 8. e5 {[%emt 0:00:00]} Ne8 {[%emt 0:00:00]} 9. Be2 {[%emt 0:00:00]} d6 {[%emt 0:00:00]} 10. Nc2 {[%emt 0:00:00]} Ba5 {[%emt 0:00:00]} 11. b4 {[%emt 0:00:00]} Bc7 {[%emt 0:00:00]} 12. exd6 {[%emt 0:00:00]} Qxd6 {[%emt 0:00:00]} 13. Qxd6 {[%emt 0:00:00]} Nxd6 {[%emt 0:00:00]} 14. Bf4 {[%emt 0:00:00]} Nc6 {[%emt 0:00:00]} 15. c5 {[%emt 0:00:00]} Nb5 {[%emt 0:00:00]} 16. Bxc7 {[%emt 0:00:00]} Nxc7 {[%emt 0:00:00]} 17. O-O {[%emt 0:00:00]} e5 {[%emt 0:00:00]} 18. Rfd1 {[%emt 0:00:00]} Bf5 {[%emt 0:00:00]} 19. Bd3 {[%emt 0:00:00]} Bxd3 {[%emt 0:00:00]} 20. Rxd3 {[%emt 0:00:00]} Rfd8 {[%emt 0:00:00]} 21. Rad1 {[%emt 0:00:00]} Ne6 {[%emt 0:00:00]} 22. Rxd8+ {[%emt 0:00:00]} Rxd8 {[%emt 0:00:00]} 23. Rxd8+ {[%emt 0:00:00]} Nexd8 {[%emt 0:00:00]} 24. Kf1 {[%emt 0:00:00]} f6 {[%emt 0:00:00]} 25. Ke2 {[%emt 0:00:00]} Kf7 {[%emt 0:00:00]} 26. Kd3 {[%emt 0:00:00]} Ke6 {[%emt 0:00:00]} 27. Kc4 {[%emt 0:00:00]} f5 {[%emt 0:00:00]} 28. f3 {[%emt 0:00:00]} g5 {[%emt 0:00:00]} 29. a4 {[%emt 0:00:00]} e4 {[%emt 0:00:00]} 30. fxe4 {[%emt 0:00:00]} Ne5+ {[%emt 0:00:00]} 31. Kb3 {[%emt 0:00:00]} f4 {[%emt 0:00:00]} 32. Nd4+ {[%emt 0:00:04]} Kf6 {[%emt 0:00:00]} 33. Nd5+ {[%emt 0:00:18]} Kg6 {[%emt 0:00:00]} 34. b5 {[%emt 0:02:05]} axb5 {[%emt 0:00:00]} 35. axb5 {[%emt 0:00:05]} Ng4 {[%emt 0:00:00]} 36. c6 {[%emt 0:08:28]} bxc6 {[%emt 0:00:00]} 37. bxc6 {[%emt 0:00:46]} Nxc6 {[%emt 0:00:00]} 38. Nxc6 {[%emt 0:00:05]} Nxh2 {[%emt 0:00:00]} 39. e5 {[%emt 0:01:32]} Kf5 {[%emt 0:00:00]} 40. Nc7 {[%emt 0:01:14]} f3 {[%emt 0:00:00]} 41. gxf3 {[%emt 0:03:09]} Nxf3 {[%emt 0:00:00]} 1/2-1/2

[Event "50th Ciudad Sevilla 2024"]
[Site "Sevilla"]
[Date "2025.01.13"]
[Round "4.17"]
[White "Ramon Perez, Jose Luis"]
[Black "Starostits, Ilmars"]
[Result "1/2-1/2"]
[Annotator "ChessBase"]
[ECO "B23"]
[WhiteElo "2120"]
[BlackElo "2364"]
[PlyCount "144"]
[EventDate "2025.01.10"]
[EventType "swiss"]
[EventCountry "ESP"]
[SourceTitle "playchess.com"]
[Source "ChessBase"]
[SourceQuality "1"]
[TimeControl "90+30"]

1. e4 {[%emt 0:00:00]} c5 {[%emt 0:00:00]} 2. Nc3 {[%emt 0:00:00]} Nc6 {[%emt 0:00:00]} 3. Bb5 {[%emt 0:00:00]} Nd4 {[%emt 0:00:00]} 4. Nf3 {[%emt 0:00:00]} a6 {[%emt 0:00:00]} 5. Bd3 {[%emt 0:00:00]} g6 {[%emt 0:00:00]} 6. O-O {[%emt 0:00:00]} Bg7 {[%emt 0:00:00]} 7. b3 {[%emt 0:00:00]} b5 {[%emt 0:00:00]} 8. e5 {[%emt 0:00:00]} Bb7 {[%emt 0:00:00]} 9. Be4 {[%emt 0:00:00]} d5 {[%emt 0:00:00]} 10. exd6 {[%emt 0:00:00]} Bxe4 {[%emt 0:00:00]} 11. Nxe4 {[%emt 0:00:00]} Nxf3+ {[%emt 0:00:00]} 12. Qxf3 {[%emt 0:00:00]} Bxa1 {[%emt 0:00:00]} 13. c3 {[%emt 0:00:00]} Ra7 {[%emt 0:00:00]} 14. Re1 {[%emt 0:00:00]} f5 {[%emt 0:00:00]} 15. Nxc5 {[%emt 0:00:00]} Qxd6 {[%emt 0:00:00]} 16. d4 {[%emt 0:00:00]} Nf6 {[%emt 0:00:00]} 17. Bf4 {[%emt 0:00:00]} Qd5 {[%emt 0:00:00]} 18. Rxa1 {[%emt 0:00:00]} Qxf3 {[%emt 0:00:00]} 19. gxf3 {[%emt 0:00:00]} Kf7 {[%emt 0:00:00]} 20. Re1 {[%emt 0:00:00]} Rc8 {[%emt 0:00:00]} 21. Bg5 {[%emt 0:00:00]} Nd5 {[%emt 0:00:00]} 22. Bd2 {[%emt 0:00:00]} Rc6 {[%emt 0:00:00]} 23. a4 {[%emt 0:00:00]} bxa4 {[%emt 0:00:00]} 24. Nxa4 {[%emt 0:00:00]} Nb6 {[%emt 0:00:00]} 25. Nc5 {[%emt 0:00:00]} Nd7 {[%emt 0:00:00]} 26. Nd3 {[%emt 0:00:00]} Rb7 {[%emt 0:00:00]} 27. b4 {[%emt 0:00:00]} Rb5 {[%emt 0:00:00]} 28. Rc1 {[%emt 0:00:00]} Nb6 {[%emt 0:00:00]} 29. Ne5+ {[%emt 0:00:00]} Rxe5 {[%emt 0:00:00]} 30. dxe5 {[%emt 0:00:00]} Nc4 {[%emt 0:00:00]} 31. Bf4 {[%emt 0:00:00]} g5 {[%emt 0:00:00]} 32. e6+ {[%emt 0:00:00]} Rxe6 {[%emt 0:02:09]} 33. Bb8 {[%emt 0:00:00]} Rc6 {[%emt 0:01:27]} 34. Rd1 {[%emt 0:01:49]} Nb6 {[%emt 0:01:32]} 35. Be5 {[%emt 0:03:15]} Ke6 {[%emt 0:00:27]} 36. Bd4 {[%emt 0:01:13]} Nd5 {[%emt 0:00:27]} 37. Re1+ {[%emt 0:00:45]} Kf7 {[%emt 0:00:10]} 38. Bc5 {[%emt 0:00:06]} e6 {[%emt 0:07:25]} 39. c4 {[%emt 0:00:20]} Nf4 {[%emt 0:00:04]} 40. Rd1 {[%emt 0:00:29]} a5 {[%emt 0:00:24]} 41. Rd7+ {[%emt 0:01:51]} Kg6 {[%emt 0:02:10]} 42. Rd6 {[%emt 0:04:19]} Rc8 {[%emt 0:00:07]} 43. h4 {[%emt 0:00:23]} axb4 {[%emt 0:00:22]} 44. Bxb4 {[%emt 0:00:07]} Rxc4 {[%emt 0:02:40]} 45. Bd2 {[%emt 0:00:05]} Nh3+ {[%emt 0:00:32]} 46. Kg2 {[%emt 0:00:25]} Rxh4 {[%emt 0:00:05]} 47. Rxe6+ {[%emt 0:00:04]} Kf7 {[%emt 0:00:07]} 48. Ra6 {[%emt 0:01:22]} Nf4+ {[%emt 0:01:09]} 49. Bxf4 {[%emt 0:00:42]} Rxf4 {[%emt 0:00:04]} 50. Ra7+ {[%emt 0:02:38]} Kg6 {[%emt 0:00:05]} 51. Ra6+ {[%emt 0:00:12]} Kh5 {[%emt 0:00:05]} 52. Ra7 {[%emt 0:00:02]} h6 {[%emt 0:00:11]} 53. Ra6 {[%emt 0:00:05]} Rd4 {[%emt 0:00:29]} 54. Rb6 {[%emt 0:00:05]} Rd8 {[%emt 0:00:21]} 55. Rf6 {[%emt 0:00:18]} f4 {[%emt 0:00:20]} 56. Ra6 {[%emt 0:00:06]} Rg8 {[%emt 0:00:16]} 57. Kh3 {[%emt 0:01:13]} Rg6 {[%emt 0:00:10]} 58. Ra5 {[%emt 0:00:05]} Rb6 {[%emt 0:00:05]} 59. Rc5 {[%emt 0:00:17]} Kg6 {[%emt 0:00:43]} 60. Ra5 {[%emt 0:00:19]} Rd6 {[%emt 0:00:15]} 61. Rb5 {[%emt 0:00:09]} Kh5 {[%emt 0:00:39]} 62. Ra5 {[%emt 0:01:27]} Rd3 {[%emt 0:00:06]} 63. Kg2 {[%emt 0:00:16]} Kh4 {[%emt 0:00:14]} 64. Ra6 {[%emt 0:00:09]} h5 {[%emt 0:00:58]} 65. Rh6 {[%emt 0:01:13]} g4 {[%emt 0:01:10]} 66. fxg4 {[%emt 0:00:15]} f3+ {[%emt 0:00:11]} 67. Kh2 {[%emt 0:00:09]} Kxg4 {[%emt 0:00:27]} 68. Rh8 {[%emt 0:01:04]} Rd2 {[%emt 0:00:19]} 69. Rg8+ {[%emt 0:00:16]} Kh4 {[%emt 0:00:11]} 70. Kg1 {[%emt 0:00:27]} Rd1+ {[%emt 0:00:05]} 71. Kh2 {[%emt 0:00:11]} Rf1 {[%emt 0:00:04]} 72. Rg4+ {[%emt 0:00:27]} hxg4 {[%emt 0:00:13]} 1/2-1/2